Cogmind - Beta 13 @@@ ROGUE MODE // 2024.04.06 @ 16:14:08 Player: SovietPaperclip Result: Destroyed by D-53 Grenadier with Mini Grenade Launcher Performance ------------- Evolutions (0) 0 Regions Visited (2) 400 Robots Destroyed (19) 95 Value Destroyed (425) 425 Prototype IDs (0) 0 Alien Tech Used (0) 0 Bonus (0) 0 TOTAL SCORE: 920 Bonus ------- None Cogmind --------- Core Integrity 0/250 Matter 231/300 Energy 250/250 System Corruption 0% Temperature Cool (2) Movement Core (750) Ox14 Location -10/Mines Parts ------- > --- POWER (1) -------- Ion Engine > --- PROPULSION (2) --- (None) > --- UTILITY (2) ------ High-capacity Storage Unit > --- WEAPON (2) ------- (None) > --- INVENTORY (20) --- Light Treads Light Treads Light Treads Light Treads Sensor Array Light Armor Plating Light Armor Plating Grenade Launcher Grenade Launcher Grenade Launcher Peak State ------------ > --- POWER ------------ Ion Engine > --- PROPULSION ------- Light Treads Light Treads > --- UTILITY ---------- High-capacity Storage Unit Light Armor Plating > --- WEAPON ----------- Light Assault Rifle Light Assault Rifle > --- INVENTORY -------- Light Treads Light Treads Light Treads Light Treads Sensor Array Light Cannon Light Cannon Grenade Launcher Grenade Launcher Grenade Launcher [Rating: 8] Favorites ----------- Power Ion Engine Engine Ion Engine Propulsion Light Treads Treads Light Treads Utility High-capacity Storage Unit Storage High-capacity Storage Unit Protection Propulsion Shielding Weapon Light Assault Rifle Ballistic Gun Light Assault Rifle Ballistic Cannon Light Cannon Launcher Grenade Launcher Build | -11 -10 -10 ------- Run | Yrd Mat Min Slots Evolved . | . . . Power . | . . . Propulsion . | . . . Utility . | . . . Weapon . | . . . Parts Attached 21 | 5 6 10 Power 1 | . . 1 Engine 1 | . . 1 Core . | . . . Reactor . | . . . Propulsion 2 | 2 . . Treads 2 | 2 . . Leg . | . . . Wheel . | . . . Hover . | . . . Flight . | . . . Utility 4 | 1 2 1 Device . | . . . Storage 2 | 1 1 . Processor . | . . . Hackware . | . . . Protection 2 | . 1 1 Artifact . | . . . Weapon 14 | 2 4 8 Energy Gun . | . . . Energy Cannon . | . . . Ballistic Gun 4 | 2 2 . Ballistic Cannon 5 | . . 5 Launcher 5 | . 2 3 Special Weapon . | . . . Impact Weapon . | . . . Slashing Weapon . | . . . Piercing Weapon . | . . . Special Melee Weapon . | . . . Unidentified Prototypes . | . . . Parts Lost 6 | . . 6 Power . | . . . Propulsion 2 | . . 2 Utility 2 | . . 2 Weapon 2 | . . 2 Highest Loss Streak 5 | . . 5 To Critical Strikes . | . . . Average Slot Usage (%) 87 | . 84 92 Engine 3 | . . 9 Treads 28 | . 28 28 Storage 14 | . 14 14 Protection 12 | . 13 11 Ballistic Gun 18 | . 22 10 Ballistic Cannon 5 | . . 16 Launcher 3 | . 5 . Naked Turns . | . . . Heaviest Build 54 | 7 45 54 Greatest Support 40 | 40 40 40 Greatest Overweight (x) 1 | . 1 1 Average Overweight (x) . | . . 1 Largest Inventory Capacity 20 | 8 20 20 Average Capacity 19 | 7 19 20 Most Carried 12 | 5 8 12 Average Carried 6 | 1 4 9 Final Capacity 20 | 8 20 20 Final Carried 10 | 2 8 10 Class Distribution -------------------- 100% | Mutant Dominant Class ---------------- Mutant | -10/Materials Mutant | -10/Mines Resources | -11 -10 -10 ----------- Run | Yrd Mat Min Matter Collected 529 | 236 177 116 Remotely . | . . . Salvage Created 539 | . 260 279 Parts 42 | . 25 17 Haulers Intercepted 2 | . 2 . Recyclers Shooed 1 | . . 1 Parts Field Recycled . | . . . Retrieved Matter . | . . . Parts Self-Destructed . | . . . Prevented . | . . . Kills | -11 -10 -10 ------- Run | Yrd Mat Min Combat Hostiles Destroyed 14 | . 9 5 Guns 4 | . 2 2 Cannons 2 | . . 2 AOE 8 | . 7 1 Classes Destroyed 8 | . 4 4 Worker 1 | . 1 . Builder 1 | . . 1 Hauler 2 | . 2 . Recycler 1 | . . 1 Swarmer 6 | . 6 . Grunt 5 | . 3 2 Sentry 2 | . . 2 Demolisher 1 | . . 1 Best Kill Streak 4 | . 4 3 Combat Bots Only 4 | . 4 2 Max Kills in Single Turn 3 | . 3 2 Gunslinging . | . . . Exploded 3 | . 3 1 Melee . | . . . Uniques/NPCs Destroyed . | . . . Combat | -11 -10 -10 -------- Run | Yrd Mat Min Hostile Shots Fired 62 | . 18 44 Missed 13 | . 5 8 Damage Taken 1081 | . 149 932 Core 252 | . 20 232 Absorbed by Shields . | . . . Redirected to Shielding 52 | . 18 34 Core Remaining (%) 100 | 100 . . Volleys Fired 66 | . 47 19 Largest 2 | . 2 2 Hottest 70 | . 50 70 Shots Fired 119 | . 84 35 Gun 98 | . 80 18 Cannon 15 | . . 15 Launcher 6 | . 4 2 Special . | . . . Kinetic 113 | . 80 33 Thermal . | . . . Explosive 6 | . 4 2 Electromagnetic . | . . . Robot Hit Streak 16 | . 9 16 Robot Miss Streak 8 | . 8 3 Penetration Max . | . . . Secondary Targets . | . . . Shots Hit Robots 71 | . 45 26 Core Hits 41 | . 25 16 Critical Kills . | . . . Critical Parts Destroyed 1 | . 1 . Critical Strikes 1 | . 1 . Destroy 1 | . 1 . Melee Attacks . | . . . Impact . | . . . Slashing . | . . . Piercing . | . . . Sneak Attacks . | . . . Combat Hostiles . | . . . Follow-up Attacks . | . . . Damage Inflicted 1137 | . 720 417 Guns 435 | . 320 115 Cannons 186 | . . 186 Explosions 516 | . 400 116 Melee . | . . . Ramming . | . . . Kinetic 621 | . 320 301 Thermal . | . . . Explosive 516 | . 400 116 Electromagnetic . | . . . Impact . | . . . Slashing . | . . . Piercing . | . . . Highest Corruption . | . . . Average Corruption . | . . . Corruption Purged . | . . . Corruption Blocked . | . . . Overload Shots . | . . . Overflow Damage 22 | . 22 . Projectiles . | . . . Explosions 22 | . 22 . Melee . | . . . Knockbacks . | . . . Impact . | . . . Kinetic . | . . . Secondary . | . . . Self-Inflicted Damage . | . . . Shots . | . . . Rammed . | . . . Targets Rammed . | . . . Kicked . | . . . Crushed . | . . . Highest Temperature 60 | . 6 60 Average Temperature 22 | . 4 26 Received Heat Transfer 174 | . 63 111 Siege Activations . | . . . Robots Corrupted . | . . . Combat Hostiles . | . . . Parts Fried . | . . . Impact Corruptions . | . . . Robots Melted . | . . . Combat Hostiles . | . . . Parts Melted . | . . . Heat Transferred . | . . . Parts Sabotaged . | . . . Parts Stolen . | . . . Parts Stripped . | . . . Power Chain Reactions . | . . . Alert | -11 -10 -10 ------- Run | Yrd Mat Min Peak Influence 297 | . 297 120 Initial 7 | . . 7 Average 102 | . 137 51 Maximum Alert Level 1 | . 1 . Low Security (%) 84 | 100 75 100 Level 1 15 | . 24 . Level 2 . | . . . Level 3 . | . . . Level 4 . | . . . Level 5 . | . . . High Security . | . . . Max Security . | . . . Squads Dispatched 1 | . 1 . Investigation . | . . . Extermination . | . . . Reinforcement 1 | . 1 . Assault . | . . . Garrison . | . . . Intercept . | . . . Searches Triggered . | . . . Construction Impeded . | . . . Haulers Reinforced . | . . . Active Scanning Responses . | . . . Cargo Convoy Interrupts . | . . . Stealth | -11 -10 -10 --------- Run | Yrd Mat Min Distress Signals 1 | . 1 . Communications Jammed . | . . . Distress Signals . | . . . Times Spotted 37 | . 25 12 Peak Tracking Total 7 | . 4 7 Tactical Retreats 1 | . 1 . Traps | -11 -10 -10 ------- Run | Yrd Mat Min Traps Triggered . | . . . Indirectly . | . . . Trap Hack Attempts . | . . . Triggered . | . . . Disarmed . | . . . Reprogrammed . | . . . Reused . | . . . Traps Extracted . | . . . Installed . | . . . Triggered . | . . . Machines | -11 -10 -10 ---------- Run | Yrd Mat Min Machines Disabled 1 | . 1 . Max in Single Turn 1 | . 1 . Machines Repaired . | . . . Machines Dismantled . | . . . Machines Sabotaged . | . . . Overloaded Fab Kills . | . . . Hacking | -11 -10 -10 --------- Run | Yrd Mat Min Machines Accessed 3 | . 3 . Terminals 3 | . 3 . Fabricators . | . . . Repair Stations . | . . . Recycling Units . | . . . Scanalyzers . | . . . Garrison Access . | . . . Total Hacks 7 | . 7 . Successful 3 | . 3 . Failed 4 | . 4 . Catastrophic . | . . . Database Lockouts . | . . . Manual . | . . . Terminals 7 | . 7 . Fabricators . | . . . Repair Stations . | . . . Recycling Units . | . . . Scanalyzers . | . . . Garrison Access . | . . . Terminal Hacks 3 | . 3 . Emergency Access Points 1 | . 1 . Hauler Manifests 1 | . 1 . Zone Layout 1 | . 1 . Fabricator Hacks . | . . . Repair Station Hacks . | . . . Recycling Unit Hacks . | . . . Scanalyzer . | . . . Garrison Access Hacks . | . . . Unauthorized Hacks . | . . . Terminals . | . . . Fabricators . | . . . Repair Stations . | . . . Recycling Units . | . . . Scanalyzers . | . . . Garrison Access . | . . . Data Cores Recovered . | . . . Used . | . . . Hacking Detections 2 | . 2 . Full Trace Events . | . . . Feedback Events . | . . . Feedback Blocked . | . . . Robot Schematics Acquired . | . . . Robots Built . | . . . Authchips . | . . . Time . | . . . Total Robot Build Rating . | . . . Part Schematics Acquired . | . . . Parts Built . | . . . Authchips . | . . . Time . | . . . Total Part Build Rating . | . . . Parts Repaired . | . . . Time . | . . . Parts Recycled . | . . . Recycled Matter . | . . . Retrieved Matter . | . . . Retrieved Components . | . . . Parts Scanalyzed . | . . . Part Schematics Acquired . | . . . Parts Damaged . | . . . Bothacking | -11 -10 -10 ------------ Run | Yrd Mat Min Used RIF Installer . | . . . Robots Hacked . | . . . Non-combat . | . . . Combat . | . . . Robot Hacks Applied . | . . . Relay Couplers Released . | . . . Fabnet Peak Effective % . | . . . Robots Rewired . | . . . Allies Hacked . | . . . Hacks Repelled . | . . . Allies | -11 -10 -10 -------- Run | Yrd Mat Min Total Allies . | . . . Largest Group . | . . . Highest-Rated Group . | . . . Highest-Rated Ally . | . . . Total Orders . | . . . Ally Attacks . | . . . Total Damage . | . . . Kills . | . . . Allies Corrupted . | . . . Allies Melted . | . . . Intel | -11 -10 -10 ------- Run | Yrd Mat Min Robot Analysis Total . | . . . Derelict Logs Recovered 2 | . . 2 Drone Launches . | . . . Drone Recoveries . | . . . Exploration | -11 -10 -10 ------------- Run | Yrd Mat Min Turns Passed 1495 | 66 933 496 Spaces Moved 550 | 40 335 175 Core 8 | 8 . . Treads 542 | 32 335 175 Legs . | . . . Wheels . | . . . Hover . | . . . Flight . | . . . Fastest Speed 50 | 50 160 240 Average Speed 230 | 138 236 240 Slowest Speed 240 | 160 240 240 Overloaded Moves . | . . . Propulsion Burnouts . | . . . Robots Hopped . | . . . Cave-ins Triggered . | . . . Exploration Rate (%) 35 | 3 63 41 Regions Visited 2 Branch Regions 1 Pre-discovered Areas . | . . . Known Exits Taken . | . . . Unknown Exits Taken 2 | 1 1 . Scrap Searched 1 | . . 1 Spaces Dug . | . . . Terrain Destroyed 37 | . 26 11 Melee . | . . . Projectile . | . . . AOE 37 | . 26 11 Terrain Rammed . | . . . Walls Destroyed . | . . . Machines Disabled . | . . . Actions | -11 -10 -10 --------- Run | Yrd Mat Min Total 677 | 51 408 218 Wait 16 | . 12 4 Move 548 | 39 334 175 Hop . | . . . Pick Up 22 | 7 8 7 Fast Attach . | . . . Attach 11 | 5 2 4 Detach . | . . . Swap 10 | . 4 6 Drop 4 | . 1 3 Fire 66 | . 47 19 Melee . | . . . Ram . | . . . Kick . | . . . Crush . | . . . Escape Stasis . | . . . Rewire . | . . . Trap . | . . . Miscellaneous . | . . . Route ------- -11/Scrapyard -10/Materials (discovered 2 exits: *Mat / [*Min]) -10/Mines (discovered 1 exit: Mat) History --------- Turn | Location | Event 27 | -11/Scrapyard | Discovered new exit (range 16) 67 | -11/Scrapyard | Entered Materials 274 | -10/Materials | Discovered new exit (range 7) 317 | -10/Materials | Build established: Mutant 426 | -10/Materials | Discovered new exit (range 7) 1000 | -10/Materials | Entered Mines 1022 | -10/Mines | Learned Materials stockpile data 1172 | -10/Mines | Identified exit to Materials 1469 | -10/Mines | Assembled infested the area 1474 | -10/Mines | Assisted by a Guerilla fighting off Assembled 1488 | -10/Mines | Core integrity fell below 50% 1494 | -10/Mines | Core integrity fell below 20% 1496 | -10/Mines | Destroyed by D-53 Grenadier with Mini Grenade Launcher Last Messages --------------- ahead or try to find another way!" 01474_ HV Slug penetrates C-30 ARC. 01474_ C-30 ARC bursts open, deploying its payload. 01474_ D-53 Grenadier unfolds itself. 01476_ HV Slug penetrates Wall. 01478_ HV Slug penetrates D-53 Grenadier. 01478_ FJ-UHM(h) destroyed. 01484_ Lgt. Armor Plating destroyed. 01485_ D-53 Grenadier destroyed. 01486_ Lgt. Cannon destroyed. 01486_ as-48437 destroyed. 01486_ as-79223 destroyed. 01487_ The unstable cave ceiling collapses. 01490_ Lgt. Treads destroyed. 01491_ The unstable cave ceiling collapses. 01493_ Knocked back. 01494_ The unstable cave ceiling collapses. 01494_ Lgt. Cannon destroyed. 01496_ K-01 Serf collects debris. Map ----- +----------------------------------------------------+ | ?????????????????????????????????????????????????? | | ?????????????????????????????????????????????????? | | ?????????????????????????????????????????????????? | | ?????????????????????????????????????????????????? | | ?????????????????????????????????????????????????? | | ???????????????????????????????????? ????????????? | | ???????????????????????????????????? ????????????? | | ???????????????????????????????????? ????????????? | | ???????????????????????????????????? ????????????? | | ???????????????????????????????????? ????????????? | | ???????????????????????????????????? ????????????? | | ???????????????????????????????????# ????????????? | | ???????????????????????????????????# #???????????? | | ???????????????????????????#####???# #???????????? | | ??????????????????????????## ##??# #???????????? | | ?????????????????????????## ##?# #???????????# | | ????????????????????????## """ #?# #??????????? | | ???????????????????????## """ #?# #??????????? | | ?????????????????####### """ #??# #???????????# | | ????????????????## """ #### ##??????????# | | ????????????????# kku #?????????## | | ????????????????# ## #???????### | | ????????????????## # ######## #?????### | | ?????????????????# # #??????# #????## | | ?????????????????# #??????# #????# """ | | ?????????????????# @ #???#### ###?## """ | | ?????????????????# #??## ### """ | | ??????????????# #??# | | ??????????????# a # #??# ### | | ??????????????# #### a #??# ###?## | | ??????????????#?????## #??## ##????## | | ?????????????????????## ]##???## ##??????# | | ??????????????????????## a %#?????########???????# | | ???????????????????????##;d #??????????????####??# | | ?????????????????????????# %#?????????????## ### | | ??????????????????????????% ;?????????????# | | ??????????????????????????% ?????????????## | | ??????????????????????????% ?????????????### | | ?????????????????????????? ???????????????## | | ?????????????????????????? ???????????????# | | ?????????????????????????? ##???????######????# | | ???????????????????????????????????##" "##?### | | ???????????????????????????????????#[! #?# | | ???????????????????????????????????#[!* /!#?# | | ???????????????????????????????????## % ##?## | | ???????????????????????????????????###++###?# | | ???????????????????????????????????# % #?# # | | ???????????????????????????????????# [ !#### | | ???????????????????????????????????# ##*%! = | | ???????????????????????????????????# *!! % | +----------------------------------------------------+ Best States ------------- Heat Dissipation 25 Energy Generation 10 Energy Capacity 250 Matter Stores 300 Matter Capacity 300 Sight Range 16 Terrain Scan Density 10 Armor Coverage 150 Propulsion Shielding 33 Evasion (%) 50 Recoil Reduction 2 Item Schematics ----------------- None Robot Schematics ------------------ None Fabricated ------------ Nothing Alien Tech Used ----------------- None Achievements -------------- None Challenges ------------ None Game ------ Seed ElectronAutogunBiocell Manual? 0 Play Time 00:08:35 Cumulative 46.5 hours Start 2024.04.06 @ 16:07:35 End 2024.04.06 @ 16:14:08 Sessions 1 Manual Loads 0 Difficulty Rogue Special Mode None Game No. 64 Rogue 64 Adventurer 0 Explorer 0 Win Type - Total 1 Types 1/0/0/0/0/0/0/0/0 Lore% 28 Gallery% 30 Achievement% 31 Wizard Run 0 Options --------- Layout 1 ASCII 0 Keyboard 0 Movement Mouse Keybinds 0 Fullscreen 2 Font 32/Smallcaps Map View 50x40 Zoom Use 0% Tactical HUD 1 Map Filters NONE Filters NONE Steam 1 RUN: 38ea41a8-2bc7-4759-9672-e05a5eb7e3d7